Cogmind - Beta 12 @@@ ROGUE MODE // 2024.02.07 @ 02:53:21 Player: puppuppit Result: Destroyed by DAS Turret with DAS Cannon Performance ------------- Evolutions (1) 500 Regions Visited (5) 1000 Robots Destroyed (43) 215 Value Destroyed (610) 610 Prototype IDs (7) 140 Alien Tech Used (0) 0 Bonus (-42) -42 TOTAL SCORE: 2423 Bonus ------- High Alert Combat Kills 19 Follower Combat Kills 108 Friendly Fire -169 Cogmind --------- Core Integrity 0/400 Matter 185/300 Energy 99/100 System Corruption 0% Temperature Cool (0) Movement Core (50) Location -9/Exiles Parts ------- > --- POWER (1) -------- (None) > --- PROPULSION (4) --- (None) > --- UTILITY (2) ------ (None) > --- WEAPON (2) ------- Light Assault Rifle > --- INVENTORY (5) ---- Light Nuclear Core Medium Matter Pod (100) Splice Drone Bay (2/6) Field Laser Mini Grenade Launcher Peak State ------------ > --- POWER ------------ Light Ion Engine > --- PROPULSION ------- Flight Unit Flight Unit > --- UTILITY ---------- Small Storage Unit Splice Drone Bay > --- WEAPON ----------- Advanced Beam Cannon Advanced Beam Cannon > --- INVENTORY -------- Light Nuclear Core Improved Heat Sink Medium Matter Pod Field Laser Field Laser Light Assault Rifle Mini Grenade Launcher [Rating: 18] Favorites ----------- Power Light Ion Engine Engine Light Ion Engine Power Core Light Nuclear Core Propulsion Hover Unit Leg Aluminum Leg Wheel Wheel Hover Unit Hover Unit Flight Unit Flight Unit Utility Small Storage Unit Device Improved Terrain Scanner Storage Small Storage Unit Processor Targeting Computer Hackware Hacking Suite Weapon Light Assault Rifle Energy Gun Field Laser Energy Cannon Beam Cannon Ballistic Gun Light Assault Rifle Launcher Mini Grenade Launcher Build | -11 -10 -10 -9 -9 -9 ------- Run | Jun Mat Min Mat Min Exi Slots Evolved 2 | . . . 2 . . Power . | . . . . . . Propulsion 2 | . . . 2 . . Utility . | . . . . . . Weapon . | . . . . . . Parts Attached 64 | 8 25 13 5 5 8 Power 8 | 2 3 2 . . 1 Engine 7 | 2 3 2 . . . Core 1 | . . . . . 1 Reactor . | . . . . . . Propulsion 25 | 2 10 8 3 2 . Treads . | . . . . . . Leg 1 | . . 1 . . . Wheel 2 | 2 . . . . . Hover 17 | . 10 5 2 . . Flight 5 | . . 2 1 2 . Utility 9 | 2 3 . 1 1 2 Device 4 | 1 . . . 1 2 Storage 2 | 1 1 . . . . Processor 2 | . 1 . 1 . . Hackware 1 | . 1 . . . . Protection . | . . . . . . Artifact . | . . . . . . Weapon 22 | 2 9 3 1 2 5 Energy Gun 8 | 2 2 . 1 1 2 Energy Cannon 7 | . 5 . . . 2 Ballistic Gun 6 | . 2 3 . . 1 Ballistic Cannon . | . . . . . . Launcher 1 | . . . . 1 . Special Weapon . | . . . . . . Impact Weapon . | . . . . . . Slashing Weapon . | . . . . . . Piercing Weapon . | . . . . . . Special Melee Weapon . | . . . . . . Unidentified Prototypes 2 | . 1 . . 1 . Corrupted Parts 1 | . 1 . . . . System Corruption 2 | . 2 . . . . Parts Lost 16 | . 2 3 2 1 8 Power 1 | . . . . . 1 Propulsion 10 | . 1 3 2 1 3 Utility 2 | . 1 . . . 1 Weapon 3 | . . . . . 3 Highest Loss Streak 4 | . 1 1 2 1 4 To Critical Strikes 2 | . . . . . 2 Average Slot Usage (%) 89 | . 99 99 99 74 46 Engine 12 | . 13 14 11 11 6 Wheel 3 | . 9 . . . . Hover 15 | . 18 19 12 11 . Flight 8 | . . 5 30 19 7 Device 1 | . 1 . . . 6 Storage 12 | . 14 14 11 11 7 Processor 7 | . 8 14 11 . . Hackware 1 | . 3 . . . . Energy Gun 6 | . 9 . 10 11 4 Energy Cannon 8 | . 10 14 . . 6 Ballistic Gun 10 | . 7 14 11 10 4 Naked Turns . | . . . . . . Heaviest Build 21 | 12 14 12 12 12 21 Greatest Support 20 | 20 20 12 12 6 8 Greatest Overweight (x) 3 | 3 2 3 1 2 3 Average Overweight (x) . | . . . . 1 . Largest Inventory Capacity 8 | 8 8 8 8 8 8 Average Capacity 7 | 7 8 8 8 8 6 Most Carried 8 | 6 8 8 8 8 8 Average Carried 7 | 2 7 7 7 7 5 Final Capacity 8 | 8 8 8 8 8 5 Final Carried 8 | 6 8 8 8 8 5 Class Distribution -------------------- 52% | Scavenger-Mutant 47% | Mutant Dominant Class ---------------- Mutant | -10/Materials Scavenger-Mutant | -10/Mines Scavenger-Mutant | -9/Materials Scavenger-Mutant | -9/Mines Mutant | -9/Exiles Resources | -11 -10 -10 -9 -9 -9 ----------- Run | Jun Mat Min Mat Min Exi Matter Collected 918 | 280 325 205 56 49 3 Remotely . | . . . . . . Salvage Created 1322 | 145 659 266 117 111 24 Parts 99 | 13 55 15 6 10 . Haulers Intercepted 4 | . 2 . 2 . . Recyclers Shooed . | . . . . . . Parts Field Recycled . | . . . . . . Retrieved Matter . | . . . . . . Parts Self-Destructed . | . . . . . . Prevented . | . . . . . . Kills | -11 -10 -10 -9 -9 -9 ------- Run | Jun Mat Min Mat Min Exi Combat Hostiles Destroyed 31 | . 14 9 1 2 5 Guns 12 | . 4 5 1 2 . Cannons 13 | . 8 4 . . 1 AOE 6 | . 2 . . . 4 Classes Destroyed 11 | 2 6 2 . . 1 Worker 2 | . 1 . . 1 . Builder 1 | . . 1 . . . Tunneler 4 | 4 . . . . . Hauler 4 | . 2 . 2 . . Recycler 3 | 1 . 1 . 1 . Operator 2 | . 2 . . . . Drone 1 | . . . . . 1 Watcher 3 | . 3 . . . . Swarmer 15 | . 6 6 1 2 . Grunt 9 | . 8 1 . . . Assembled 7 | . . 2 . . 5 Best Kill Streak 7 | 5 7 4 1 2 5 Combat Bots Only 6 | . 6 4 1 2 5 Max Kills in Single Turn 3 | 3 1 1 1 2 2 Gunslinging 1 | . . . . 1 . Exploded 2 | . 1 . . . 2 Melee . | . . . . . . Uniques/NPCs Destroyed . | . . . . . . Combat | -11 -10 -10 -9 -9 -9 -------- Run | Jun Mat Min Mat Min Exi Damage Taken 1758 | . 236 323 95 19 1085 Core 553 | . 47 106 15 2 383 Absorbed by Shields . | . . . . . . Regen/Repaired (Parts) 11 | . 11 . . . . Core Remaining (%) 69 | 100 . 38 . . . Volleys Fired 137 | 4 52 32 8 6 35 Largest 2 | 2 2 2 2 2 2 Hottest 136 | 80 100 80 83 83 136 Shots Fired 257 | 8 102 63 16 10 58 Gun 143 | 8 58 32 16 8 21 Cannon 107 | . 44 31 . . 32 Launcher 7 | . . . . 2 5 Special . | . . . . . . Kinetic 77 | . 25 32 8 4 8 Thermal 154 | 4 62 31 8 4 45 Explosive 7 | . . . . 2 5 Electromagnetic 19 | 4 15 . . . . Robot Hit Streak 13 | 3 6 13 3 5 6 Robot Miss Streak 3 | 1 3 3 3 2 2 Penetration Max . | . . . . . . Secondary Targets 1 | . . . . 1 . Max Gunslinging Chain 1 | . . . . 1 . Shots Hit Robots 152 | 6 56 43 7 4 36 Core Hits 73 | 5 29 18 5 4 12 Critical Kills . | . . . . . . Critical Parts Destroyed . | . . . . . . Critical Strikes 1 | . . . 1 . . Burn 1 | . . . 1 . . Melee Attacks . | . . . . . . Impact . | . . . . . . Slashing . | . . . . . . Piercing . | . . . . . . Sneak Attacks . | . . . . . . Combat Hostiles . | . . . . . . Follow-up Attacks . | . . . . . . Damage Inflicted 2235 | 127 921 595 92 65 435 Guns 786 | 74 326 184 92 60 50 Cannons 981 | . 504 398 . . 79 Explosions 450 | 53 91 . . . 306 Melee . | . . . . . . Ramming 18 | . . 13 . 5 . Kinetic 379 | . 108 184 37 9 41 Thermal 1393 | 89 712 398 55 51 88 Explosive 306 | . . . . . 306 Electromagnetic 139 | 38 101 . . . . Impact . | . . . . . . Slashing . | . . . . . . Piercing . | . . . . . . Highest Corruption 2 | . 2 2 . . . Average Corruption 2 | . 2 2 . . . Corruption Purged . | . . . . . . Corruption Blocked . | . . . . . . Effects 16 | . 6 10 . . . Message Errors 4 | . 2 2 . . . Matter Fused 3 | . . 3 . . . Heat Flow Errors 1 | . . 1 . . . Energy Discharges 5 | . 3 2 . . . Data Loss (minor) 1 | . . 1 . . . Data Loss (major) 1 | . 1 . . . . Weapon Failures 1 | . . 1 . . . Overload Shots . | . . . . . . Overflow Damage 54 | . 20 10 . . 24 Projectiles 31 | . 20 10 . . 1 Explosions 23 | . . . . . 23 Melee . | . . . . . . Knockbacks . | . . . . . . Impact . | . . . . . . Kinetic . | . . . . . . Secondary . | . . . . . . Self-Inflicted Damage 8 | . . 6 . 2 . Shots . | . . . . . . Rammed 3 | . . 2 . 1 . Targets Rammed 3 | . . 2 . 1 . Kicked . | . . . . . . Crushed . | . . . . . . Highest Temperature 303 | 72 261 218 69 38 303 Average Temperature 88 | 37 89 71 32 24 151 Received Heat Transfer 123 | . 99 24 . . . Siege Activations . | . . . . . . Robots Corrupted . | . . . . . . Combat Hostiles . | . . . . . . Parts Fried . | . . . . . . Impact Corruptions . | . . . . . . Robots Melted . | . . . . . . Combat Hostiles . | . . . . . . Parts Melted 5 | . 3 2 . . . Heat Transferred 3000 | 175 1436 814 138 111 326 Parts Sabotaged . | . . . . . . Parts Stolen . | . . . . . . Parts Stripped . | . . . . . . Power Chain Reactions 3 | 1 2 . . . . Missiles Intercepted . | . . . . . . Alert | -11 -10 -10 -9 -9 -9 ------- Run | Jun Mat Min Mat Min Exi Peak Influence 450 | 25 450 253 217 150 . Initial 128 | . 16 128 39 76 . Average 159 | 9 235 166 107 82 . Maximum Alert Level 2 | . 2 1 1 . . Low Security (%) 65 | 100 31 64 91 100 . Level 1 32 | . 61 35 8 . . Level 2 2 | . 6 . . . . Level 3 . | . . . . . . Level 4 . | . . . . . . Level 5 . | . . . . . . High Security . | . . . . . . Max Security . | . . . . . . Squads Dispatched 7 | . 5 . 2 . . Investigation 5 | . 3 . 2 . . Extermination . | . . . . . . Reinforcement 2 | . 2 . . . . Assault . | . . . . . . Garrison . | . . . . . . Intercept . | . . . . . . Searches Triggered . | . . . . . . Construction Impeded . | . . . . . . Haulers Reinforced . | . . . . . . Active Scanning Responses . | . . . . . . Cargo Convoy Interrupts . | . . . . . . Stealth | -11 -10 -10 -9 -9 -9 --------- Run | Jun Mat Min Mat Min Exi Distress Signals 4 | . 1 . 3 . . Communications Jammed . | . . . . . . Distress Signals . | . . . . . . Times Spotted 62 | . 21 21 6 3 11 Peak Tracking Total 18 | . 6 18 3 3 9 Tactical Retreats 8 | . 2 4 . . 2 Traps | -11 -10 -10 -9 -9 -9 ------- Run | Jun Mat Min Mat Min Exi Traps Triggered 4 | . 4 . . . . Indirectly . | . . . . . . Trap Hack Attempts . | . . . . . . Triggered . | . . . . . . Disarmed . | . . . . . . Reprogrammed . | . . . . . . Reused . | . . . . . . Traps Extracted . | . . . . . . Installed . | . . . . . . Triggered . | . . . . . . Machines | -11 -10 -10 -9 -9 -9 ---------- Run | Jun Mat Min Mat Min Exi Machines Disabled 4 | . . . 1 . 3 Max in Single Turn 1 | . . . . . 1 Machines Repaired . | . . . . . . Machines Sabotaged . | . . . . . . Overloaded Fab Kills . | . . . . . . Hacking | -11 -10 -10 -9 -9 -9 --------- Run | Jun Mat Min Mat Min Exi Machines Accessed 14 | . 7 . 6 1 . Terminals 11 | . 6 . 5 . . Fabricators . | . . . . . . Repair Stations 1 | . 1 . . . . Recycling Units . | . . . . . . Scanalyzers 1 | . . . 1 . . Garrison Access . | . . . . . . Total Hacks 44 | . 26 . 17 1 . Successful 22 | . 12 . 9 1 . Failed 21 | . 13 . 8 . . Catastrophic 3 | . 2 . 1 . . Database Lockouts 1 | . 1 . . . . Manual 24 | . 13 . 7 . 4 Terminals 37 | . 23 . 14 . . Fabricators . | . . . . . . Repair Stations 3 | . 3 . . . . Recycling Units . | . . . . . . Scanalyzers 3 | . . . 3 . . Garrison Access . | . . . . . . Terminal Hacks 18 | . 10 . 7 1 . Robot Schematic 2 | . . . 2 . . Robot Analysis 5 | . 4 . 1 . . Prototype ID Bank 4 | . 3 . 1 . . Open Door 1 | . . . . 1 . Branch Access Points 2 | . 1 . 1 . . Terminal Index 1 | . 1 . . . . Locate Traps 1 | . . . 1 . . Zone Layout 2 | . 1 . 1 . . Fabricator Hacks . | . . . . . . Repair Station Hacks 2 | . 2 . . . . Scan Component 1 | . 1 . . . . Repair 1 | . 1 . . . . Recycling Unit Hacks . | . . . . . . Scanalyzer 2 | . . . 2 . . Insert Component 1 | . . . 1 . . Analyze 1 | . . . 1 . . Garrison Access Hacks . | . . . . . . Unauthorized Hacks . | . . . . . . Terminals . | . . . . . . Fabricators . | . . . . . . Repair Stations . | . . . . . . Recycling Units . | . . . . . . Scanalyzers . | . . . . . . Garrison Access . | . . . . . . Data Cores Recovered . | . . . . . . Used . | . . . . . . Hacking Detections 12 | . 6 . 6 . . Full Trace Events 5 | . 3 . 2 . . Feedback Events . | . . . . . . Feedback Blocked . | . . . . . . Robot Schematics Acquired 2 | . . . 2 . . Robots Built . | . . . . . . Authchips . | . . . . . . Time . | . . . . . . Total Robot Build Rating . | . . . . . . Part Schematics Acquired 1 | . . . 1 . . Parts Built . | . . . . . . Authchips . | . . . . . . Time . | . . . . . . Total Part Build Rating . | . . . . . . Parts Repaired 1 | . 1 . . . . Time 26 | . 26 . . . . Parts Recycled . | . . . . . . Recycled Matter . | . . . . . . Retrieved Matter . | . . . . . . Retrieved Components . | . . . . . . Parts Scanalyzed 1 | . . . 1 . . Part Schematics Acquired 1 | . . . 1 . . Parts Damaged . | . . . . . . Bothacking | -11 -10 -10 -9 -9 -9 ------------ Run | Jun Mat Min Mat Min Exi Used RIF Installer . | . . . . . . Robots Hacked . | . . . . . . Non-combat . | . . . . . . Combat . | . . . . . . Robot Hacks Applied . | . . . . . . Relay Couplers Released . | . . . . . . Fabnet Peak Effective % . | . . . . . . Robots Rewired . | . . . . . . Allies Hacked . | . . . . . . Hacks Repelled . | . . . . . . Allies | -11 -10 -10 -9 -9 -9 -------- Run | Jun Mat Min Mat Min Exi Total Allies 2 | . . 2 . . . Largest Group 2 | . . 2 2 1 1 Highest-Rated Group 48 | . . 48 48 31 31 Highest-Rated Ally 31 | . . 31 31 31 31 Total Orders . | . . . . . . Ally Attacks 96 | . . 4 7 1 84 Total Damage 361 | . . 80 66 20 195 Kills 5 | . . 1 2 1 1 Allies Corrupted . | . . . . . . Allies Melted . | . . . . . . Intel | -11 -10 -10 -9 -9 -9 ------- Run | Jun Mat Min Mat Min Exi Robot Analysis Total 5 | . 4 . 1 . . Derelict Logs Recovered 2 | . . 1 . 1 . Drone Launches 10 | . . . . . 10 Drone Recoveries 6 | . . . . . 6 Exploration | -11 -10 -10 -9 -9 -9 ------------- Run | Jun Mat Min Mat Min Exi Turns Passed 2556 | 88 795 739 129 599 206 Spaces Moved 2427 | 65 808 682 240 474 158 Core 151 | 7 . 2 . . 142 Treads . | . . . . . . Legs 64 | . . 64 . . . Wheels 318 | 58 260 . . . . Hover 1587 | . 548 530 22 473 14 Flight 307 | . . 86 218 1 2 Fastest Speed 34 | 50 56 56 34 120 50 Average Speed 77 | 87 65 78 36 120 59 Slowest Speed 200 | 200 180 200 120 200 200 Overloaded Moves . | . . . . . . Propulsion Burnouts . | . . . . . . Robots Hopped . | . . . . . . Cave-ins Triggered . | . . . . . . Exploration Rate (%) 62 | 4 96 97 32 96 48 Regions Visited 5 Branch Regions 3 Pre-discovered Areas . | . . . . . . Known Exits Taken 3 | . 1 1 1 . . Unknown Exits Taken 2 | 1 . . . 1 . Scrap Searched 2 | . . 1 . 1 . Spaces Dug . | . . . . . . Terrain Destroyed 75 | 3 9 . . 22 41 Melee . | . . . . . . Projectile 2 | . . . . . 2 AOE 73 | 3 9 . . 22 39 Terrain Rammed . | . . . . . . Walls Destroyed . | . . . . . . Machines Disabled . | . . . . . . Actions | -11 -10 -10 -9 -9 -9 --------- Run | Jun Mat Min Mat Min Exi Total 2873 | 85 986 828 268 494 212 Wait 161 | . 51 91 8 3 8 Move 2422 | 64 807 681 239 473 158 Hop . | . . . . . . Pick Up 33 | 7 20 2 3 1 . Fast Attach 27 | 7 11 3 3 3 . Attach 12 | 1 3 2 2 . 4 Detach 10 | 1 3 . 2 2 2 Swap 25 | . 11 8 . 2 4 Drop 43 | 1 28 7 3 3 1 Fire 137 | 4 52 32 8 6 35 Melee . | . . . . . . Ram 3 | . . 2 . 1 . Kick . | . . . . . . Crush . | . . . . . . Escape Stasis . | . . . . . . Rewire . | . . . . . . Trap . | . . . . . . Miscellaneous . | . . . . . . Route ------- -11/Junkyard -10/Materials (discovered 4 exits: *Mat x3 / *Min) -10/Mines (discovered 2 exits: *Mat x2) -9/Materials (discovered 2 exits: *Min / Sto) -9/Mines (discovered 3 exits: [*Mat x2] / *Exi) -9/Exiles (discovered 1 exit: [*Min]) History --------- Turn | Location | Event 35 | -11/Junkyard | Discovered new exit (range 14) 89 | -11/Junkyard | Entered Materials 190 | -10/Materials | Discovered new exit (range 14) 209 | -10/Materials | Identified exit to Mines 330 | -10/Materials | Central database locked down 331 | -10/Materials | Build established: Mutant 485 | -10/Materials | Discovered new exit (range 10) 738 | -10/Materials | Discovered new exit (range 8) 788 | -10/Materials | Repaired Hover Unit 884 | -10/Materials | Entered Mines 939 | -10/Mines | Assembled infested the area 944 | -10/Mines | Assisted by a Guerilla fighting off Assembled 1014 | -10/Mines | Met a Derelict bent on vengeance 1077 | -10/Mines | Discovered new exit (range 9) 1092 | -10/Mines | Identified exit to Materials 1293 | -10/Mines | Found a hidden stash of uninstalled traps 1323 | -10/Mines | Build established: Scavenger-Mutant 1329 | -10/Mines | Core integrity fell below 50% 1623 | -10/Mines | Entered Materials 1623 | -9/Materials | Accompanied by 2 allies 1623 | -9/Materials | Evolved 2 slots: Propulsion x2 1628 | -9/Materials | Led the pair of lost Derelicts to an unsafe place 1694 | -9/Materials | Identified exit to Mines 1694 | -9/Materials | Identified exit to Storage 1729 | -9/Materials | Met 8R-AWN 1743 | -9/Materials | Attacked by 8R-AWN 1752 | -9/Materials | Entered Mines 1752 | -9/Mines | Accompanied by 1 ally 1765 | -9/Mines | Found the Drone Emporium 1771 | -9/Mines | Found Prototype Device 1771 | -9/Mines | Identified Splice Drone Bay 1847 | -9/Mines | Learned 4 Materials zone layouts 1910 | -9/Mines | Discovered new exit (range 6) 2145 | -9/Mines | Discovered new exit (range 10) 2342 | -9/Mines | Discovered new exit (range 6) 2351 | -9/Mines | Entered Exiles 2351 | -9/Exiles | Accompanied by 1 ally 2351 | -9/Exiles | Attacked by the Exiles 2381 | -9/Exiles | Discovered new exit (range 16) 2458 | -9/Exiles | Lost 3 parts (2n1w) 2477 | -9/Exiles | Core integrity fell below 50% 2524 | -9/Exiles | Lost 4 parts (1p1u2w) 2556 | -9/Exiles | Core integrity fell below 20% 2557 | -9/Exiles | Destroyed by DAS Turret with DAS Cannon Last Messages --------------- 02484_ Penetrated by HV Slug. 02484_ HV Slug penetrates Earth. 02486_ Dropped Sml. Storage Unit. 02488_ 8R-AWN suffers critical hit (Burn). 02489_ Penetrated by HV Slug. 02489_ HV Slug penetrates Wall. 02489_ Penetrated by HV Slug. 02489_ HV Slug penetrates Wall. 02490_ Acquired 3 matter. 02490_ 8R-AWN suffers critical hit (Burn). 02493_ HV Slug penetrates Wall. 02493_ Penetrated by HV Slug. 02493_ Imp. Heat Sink destroyed. 02493_ HV Slug penetrates Machine. 02497_ HV Slug penetrates Wall. 02532_ Connecting with EX-Vault Access... 02532_ Current location identified: Exiles >>\\1234 Not this time, boltface! 02555_ Knocked back. Map ----- +----------------------------------------------------+ | ??????????????????????????????#" #????? | | ??????????????????????????????#" ## #????? | | ??????????????????????????????#""""""?# #?#### | | ??????????????????????????????##"###??# #?#""" | | ??????????????????????????????????????# #?#""" | | ??????????????????????????????????????# #?#""" | | ?????????????????????????????????????## ###"" | | ?????????????????????????????????????#" | | ?????????????????????????????????????#" | | ?????????????????????????????????????#" | | ?????????????????????????????????????#" | | ????????????????????????##???????????#" | | ???????????????????????? ""?????????#" | | ????????????????????????" ""?????????## | | ????????????????????????" ??????????# | | ???????????????????????"" ??????????#" "X" | | ???????????????????????"" ??????????#" """ | | ??????????????????????? "??????????#" """"" | | ????????????????????????" "?????????##" ###### | | ????????????????????????# #????????##"" #????? | | ???????????????#??????### ###?######"" #????? | | ??????????? """#####X# #"###""""""" ##???? | | ??????????? """""" " "" ##??? | | ?????????? "" """ " #### | | ?????????? % " " | | ???????????# @ | | ?????????????# | | ?????????????## % | | ??????????????## | | ???????????????##" | | ????????????????#""" """""" | | ????????????????#" ######""" | | ????????????????"" ""##????#####""" | | ????????????????""" """##?????????##""" | | ????????????????"" """##???????????#"""" | | ?????????????????" ""#????????????#"" | | ????????????????" t #??????????????""" | | ????????????????"" ??????????????? | | ?????????????????? ??????????????? | | ????????????????????? ?????????????? | | ??????????????????????? ??????????????? | | ?????????????????????????? ???????????????? | | ?????????????????????????????????????????????? | | ????????????????????????????????????????????????" | | ?????????????????????????????????????????????????? | | ?????????????????????????????????????????????????? | | ?????????????????????????????????????????????????? | | ?????????????????????????????????????????????????? | | ?????????????????????????????????????????????????? | | ?????????????????????????????????????????????????? | +----------------------------------------------------+ Best States ------------- Heat Dissipation 42 Energy Generation 14 Energy Capacity 250 Matter Stores 300 Matter Capacity 300 Sight Range 16 Terrain Scan Range 16 Terrain Scan Density 10 Evasion (%) 63 Targeting Accuracy 5 Salvage Targeting 1 Offensive Hacking 10 Item Schematics ----------------- Adv. Beam Cannon | -9/Materials | Scanalyzed Robot Schematics ------------------ O-16 Technician | -9/Materials | Hacked G-34 Mercenary | -9/Materials | Hacked Fabricated ------------ Nothing Alien Tech Used ----------------- None Achievements -------------- None Challenges ------------ None Game ------ Seed CloakAutogunShotgun Manual? 0 Play Time 00:40:20 Cumulative 97.5 hours Start 2024.02.07 @ 02:16:47 End 2024.02.07 @ 02:53:21 Sessions 1 Manual Loads 0 Difficulty Rogue Special Mode None Game No. 60 Rogue 60 Adventurer 0 Explorer 0 Win Type - Total 0 Types 0/0/0/0/0/0/0/0/0 Lore% 57 Gallery% 57 Achievement% 48 Wizard Run 0 Options --------- ASCII 0 Keyboard 1 Movement Arrows Keybinds 0 Fullscreen 1 Font 12/Proggy Map View 83x54 Tactical HUD 1 Map Filters NONE Filters NONE Steam 0 RUN: fb9f723a-f129-460e-a3f6-85221d4c4c4c